fUST/lending_fUST_20250921
["ID","MTS","AMOUNT","RATE_DAILY","PERIOD"]
[386713467,1758466258194,-480.51,0.00020273,2]
[386713469,1758466258204,-480.0,0.00020273,2]
[386713471,1758466258213,-480.0,0.00020273,2]
[386713473,1758466258223,-484.68742518,0.00020273,2]
[386713475,1758466258232,-480.0,0.00020273,2]
[386713477,1758466258242,-480.0,0.00020273,2]
[386713479,1758466258251,-480.0,0.00020273,2]
[386713481,1758466258261,-480.0,0.00020273,2]
[386713483,1758466258270,-480.0,0.00020273,2]
[386713485,1758466258279,-565.87,0.00020273,2]
[386713487,1758466258289,-746.0,0.00020273,2]
[386713489,1758466258298,-480.0,0.00020273,2]
[386713491,1758466258308,-486.79,0.00020273,2]
[386713493,1758466258318,-820.42,0.00020273,2]
[386713495,1758466258327,-4203.45,0.00020273,2]
[386713497,1758466258337,-480.0,0.00020273,2]
[386713499,1758466258346,-480.0,0.00020273,2]
[386713501,1758466258355,-480.0,0.00020273,2]
[386713503,1758466258364,-480.0,0.00020273,2]
[386713505,1758466258376,-851.58,0.00020273,2]
[386713507,1758466258386,-480.0,0.00020273,2]
[386713509,1758466258395,-480.0,0.00020273,2]
[386713511,1758466258405,-480.0,0.00020273,2]
[386713513,1758466258416,-480.0,0.00020273,2]
[386713515,1758466258425,-480.0,0.00020273,2]
[386713517,1758466258434,-480.0,0.00020273,2]
[386713519,1758466258444,-480.0,0.00020273,2]
[386713521,1758466258453,-537.74,0.00020273,2]
[386713523,1758466258462,-2698.71,0.00020273,2]
[386713525,1758466258471,-1022.71,0.00020273,2]
[386713527,1758466258480,-833.12,0.00020273,2]
[386713529,1758466258490,-480.0,0.00020273,2]
[386713530,1758466258499,-1175.92,0.00020273,2]
[386713533,1758466258508,-480.0,0.00020273,2]
[386713534,1758466258518,-515.77131419,0.00020273,2]
[386713537,1758466258527,-480.0,0.00020273,2]
[386713539,1758466258537,-480.0,0.00020273,2]
[386713540,1758466258546,-764.67,0.00020273,2]
[386713543,1758466258556,-480.0,0.00020273,2]
[386713545,1758466258565,-480.0,0.00020273,2]
[386713546,1758466258575,-480.0,0.00020273,2]
[386713549,1758466258584,-480.0,0.00020273,2]
[386713551,1758466258594,-480.0,0.00020273,2]
[386713553,1758466258604,-480.0,0.00020273,2]
[386713554,1758466258615,-480.0,0.00020273,2]
[386713556,1758466258624,-1433.61,0.00020273,2]
[386713559,1758466258634,-151.0,0.00020276,2]
[386713560,1758466258644,-1000.0,0.00020277,2]
[386713562,1758466258653,-379.94549434,0.00020277,2]
[386713564,1758466258663,-500.0,0.00020277,2]
[386713566,1758466258672,-507.47765638,0.00020277,2]
[386713568,1758466258681,-151.0,0.000203,3]
[386713570,1758466258691,-553.93644898,0.00020327,2]
[386713572,1758466258700,-281.036138,0.00020327,2]
[386713574,1758466258710,-281.036138,0.00020327,2]
[386713576,1758466258720,-281.036138,0.00020327,2]
[386713578,1758466258730,-281.036145,0.00020327,2]
[386713580,1758466258739,-1068.84240873,0.000204,2]
[386713582,1758466258749,-230.0,0.00020419,2]
[386713584,1758466258758,-500.0,0.00020442,2]
[386713586,1758466258768,-260.0,0.00020452,2]
[386713588,1758466258778,-156.0,0.00020493,3]
[386713590,1758466258787,-151.0,0.000205,4]
[386713592,1758466258797,-432.04649603,0.00020531,2]
[386713594,1758466258807,-480.0,0.00020547,2]
[386713596,1758466258818,-480.0,0.00020547,2]
[386713598,1758466258828,-480.0,0.00020547,2]
[386713600,1758466258837,-480.0,0.00020547,2]
[386713602,1758466258847,-480.0,0.00020547,2]
[386713604,1758466258856,-480.0,0.00020547,2]
[386713606,1758466258866,-480.0,0.00020547,2]
[386713608,1758466258875,-480.0,0.00020547,2]
[386713610,1758466258885,-480.0,0.00020547,2]
[386713612,1758466258894,-480.0,0.00020547,2]
[386713614,1758466258904,-480.0,0.00020547,2]
[386713616,1758466258914,-480.0,0.00020547,2]
[386713618,1758466258923,-480.0,0.00020547,2]
[386713620,1758466258933,-480.0,0.00020547,2]
[386713622,1758466258942,-480.0,0.00020547,2]
[386713624,1758466258951,-480.0,0.00020547,2]
[386713626,1758466258961,-480.0,0.00020547,2]
[386713628,1758466258971,-480.0,0.00020547,2]
[386713629,1758466258980,-480.0,0.00020547,2]
[386713630,1758466258990,-480.0,0.00020547,2]
[386713631,1758466259000,-480.0,0.00020547,2]
[386713632,1758466259009,-480.0,0.00020547,2]
[386713633,1758466259023,-480.0,0.00020547,2]
[386713634,1758466259033,-480.0,0.00020547,2]
[386713635,1758466259045,-480.0,0.00020547,2]
[386713636,1758466259057,-480.0,0.00020547,2]
[386713637,1758466259067,-480.0,0.00020547,2]
[386713638,1758466259076,-480.0,0.00020547,2]
[386713639,1758466259086,-480.0,0.00020547,2]
[386713640,1758466259096,-480.0,0.00020547,2]
[386713641,1758466259106,-686.79,0.00020547,2]
[386713642,1758466259116,-480.0,0.00020547,2]
[386713643,1758466259126,-480.0,0.00020547,2]
[386713644,1758466259136,-509.80161875,0.00020547,2]
[386713645,1758466259145,-10449.81,0.00020547,2]
[386713646,1758466259154,-480.0,0.00020547,2]
[386713647,1758466259164,-480.0,0.00020547,2]
[386713648,1758466259173,-480.0,0.00020547,2]
[386713649,1758466259183,-151.0,0.00020547,2]
[386713650,1758466259192,-202.31479683,0.00020547,2]
[386713651,1758466259202,-480.0,0.00020547,2]
[386713652,1758466259211,-480.0,0.00020547,2]
[386713653,1758466259221,-480.0,0.00020547,2]
[386713654,1758466259231,-480.0,0.00020547,2]
[386713655,1758466259242,-571.271383,0.00020547,2]
[386713657,1758466259251,-480.0,0.00020547,2]
[386713658,1758466259260,-480.0,0.00020547,2]
[386713659,1758466259270,-480.0,0.00020547,2]
[386713661,1758466259279,-647.89,0.00020547,2]
[386713663,1758466259289,-480.0,0.00020547,2]
[386713665,1758466259298,-480.0,0.00020547,2]
[386713667,1758466259308,-480.0,0.00020547,2]
[386713669,1758466259317,-1483.09,0.00020547,2]
[386713671,1758466259327,-480.0,0.00020547,2]
[386713673,1758466259336,-480.0,0.00020547,2]
[386713675,1758466259345,-480.0,0.00020547,2]
[386713677,1758466259354,-454.71229305,0.00020547,2]
[386713679,1758466259365,-480.0,0.00020547,2]
[386713681,1758466259374,-480.0,0.00020547,2]
[386713683,1758466259383,-480.0,0.00020547,2]
[386713685,1758466259392,-480.0,0.00020547,2]
[386713687,1758466259402,-2444.72,0.00020547,2]
[386713689,1758466259412,-480.0,0.00020547,2]
[386713691,1758466259421,-638.57,0.00020547,2]
[386713693,1758466259430,-480.0,0.00020547,2]
[386713695,1758466259440,-1091.24,0.00020547,2]
[386713697,1758466259450,-480.0,0.00020547,2]
[386713699,1758466259461,-701.35,0.00020547,2]
[386713701,1758466259470,-151.0,0.00020547,2]
[386713703,1758466259480,-480.0,0.00020547,2]
[386713705,1758466259491,-480.0,0.00020547,2]
[386713707,1758466259500,-480.0,0.00020547,2]
[386713709,1758466259509,-418.85923538,0.00020547,2]
[386713711,1758466259519,-480.0,0.00020547,2]
[386713713,1758466259530,-151.0,0.00020547,2]
[386713715,1758466259540,-480.0,0.00020547,2]
[386713717,1758466259549,-151.0,0.00020547,2]
[386713719,1758466259559,-480.0,0.00020547,2]
[386713721,1758466259568,-515.02431158,0.00020547,2]
[386713723,1758466259578,-1064.36,0.00020547,2]
[386713725,1758466259587,-1229.11,0.00020547,2]
[386713726,1758466259596,-602.2,0.00020547,2]
[386713728,1758466259606,-480.0,0.00020547,2]
[386713730,1758466259616,-480.0,0.00020547,2]
[386713733,1758466259626,-151.0,0.00020547,2]
[386713735,1758466259636,-480.0,0.00020547,2]
[386713737,1758466259647,-151.0,0.00020547,2]
[386713738,1758466259656,-480.0,0.00020547,2]
[386713741,1758466259666,-480.0,0.00020547,2]
[386713742,1758466259675,-151.0,0.00020547,2]
[386713745,1758466259685,-1278.12,0.00020547,2]
[386713746,1758466259694,-1117.47,0.00020547,2]
[386713748,1758466259704,-480.0,0.00020547,2]
[386713750,1758466259714,-480.0,0.00020547,2]
[386713751,1758466259726,-480.0,0.00020547,2]
[386713752,1758466259736,-480.0,0.00020547,2]
[386713753,1758466259746,-480.0,0.00020547,2]
[386713754,1758466259755,-1075.36,0.00020547,2]
[386713755,1758466259765,-480.51,0.00020547,2]
[386713756,1758466259775,-480.0,0.00020547,2]
[386713757,1758466259785,-480.0,0.00020547,2]
[386713758,1758466259795,-480.0,0.00020547,2]
[386713759,1758466259804,-480.0,0.00020547,2]
[386713760,1758466259814,-480.0,0.00020547,2]
[386713761,1758466259823,-480.0,0.00020547,2]
[386713762,1758466259833,-480.0,0.00020547,2]
[386713763,1758466259842,-565.87,0.00020547,2]
[386713764,1758466259852,-746.0,0.00020547,2]
[386713765,1758466259861,-486.79,0.00020547,2]
[386713766,1758466259871,-820.42,0.00020547,2]
[386713767,1758466259882,-4203.45,0.00020547,2]
[386713768,1758466259891,-480.0,0.00020547,2]
[386713769,1758466259900,-480.0,0.00020547,2]
[386713770,1758466259910,-480.0,0.00020547,2]
[386713771,1758466259919,-480.0,0.00020547,2]
[386713772,1758466259929,-851.58,0.00020547,2]
[386713773,1758466259939,-458.84,0.00020547,2]
[386713774,1758466259948,-480.0,0.00020547,2]
[386713775,1758466259958,-480.0,0.00020547,2]
[386713776,1758466259968,-480.0,0.00020547,2]
[386713777,1758466259977,-480.0,0.00020547,2]
[386713778,1758466259987,-480.0,0.00020547,2]
[386713779,1758466259997,-480.0,0.00020547,2]
[386713780,1758466260006,-537.74,0.00020547,2]
[386713781,1758466260020,-2698.71,0.00020547,2]
[386713782,1758466260031,-1022.71,0.00020547,2]
[386713783,1758466260043,-833.12,0.00020547,2]
[386713784,1758466260154,-480.0,0.00020547,2]
[386713785,1758466260164,-480.0,0.00020547,2]
[386713786,1758466260174,-480.0,0.00020547,2]
[386713787,1758466260184,-480.0,0.00020547,2]
[386713788,1758466260194,-764.67,0.00020547,2]
[386713789,1758466260205,-1175.92,0.00020547,2]
[386713790,1758466260216,-480.0,0.00020547,2]
[386713791,1758466260226,-480.0,0.00020547,2]
[386713792,1758466260236,-480.0,0.00020547,2]
[386713793,1758466260245,-480.0,0.00020547,2]
[386713794,1758466260255,-480.0,0.00020547,2]
[386713795,1758466260265,-480.0,0.00020547,2]
[386713796,1758466260274,-480.0,0.00020547,2]
[386713797,1758466260283,-1433.61,0.00020547,2]
[386713798,1758466260293,-1177.74034965,0.00020568,2]
[386713799,1758466260302,-500.0,0.00020568,2]
[386713800,1758466260311,-500.0,0.00020568,2]
[386713801,1758466260321,-781.69742881,0.00020568,2]
[386713802,1758466260330,-1500.0,0.00020568,2]
[386713803,1758466260340,-1500.0,0.00020568,2]
[386713804,1758466260349,-1500.0,0.00020568,2]
[386713805,1758466260359,-1500.0,0.00020568,2]
[386713806,1758466260368,-1068.84240873,0.000206,2]
[386713807,1758466260377,-151.0,0.000206,2]
[386713808,1758466260387,-151.0,0.000206,2]
[386713809,1758466260397,-230.0,0.00020655,2]
[386713810,1758466260406,-230.0,0.00020655,2]
[386713811,1758466260415,-3307.95320184,0.0002068,2]
[386713812,1758466260425,-230.0,0.00020697,2]
[386713813,1758466260435,-151.0,0.000207,3]
[386713814,1758466260445,-1400.0,0.00020712,2]
[386713815,1758466260456,-500.0,0.00020716,2]
[386713816,1758466260466,-646.49590545,0.00020727,2]
[386713817,1758466260476,-500.0,0.00020785,2]
[386713818,1758466260486,-500.0,0.00020785,2]
[386713820,1758466260496,-500.0,0.00020785,2]
[386713822,1758466260506,-1680.0,0.00020786,2]
[386713824,1758466260516,-1068.84240873,0.000208,2]
[386713825,1758466260527,-20061.9404913,0.00020812,2]
[386713826,1758466260537,-1500.0,0.00020816,2]
[386713827,1758466260546,-230.0,0.0002082,2]
[386713828,1758466260557,-1000.0,0.00020821,2]
[386713829,1758466260566,-1000.0,0.00020821,2]
[386713830,1758466260576,-1000.0,0.00020821,2]
[386713832,1758466260585,-480.0,0.00020821,2]
[386713834,1758466260594,-480.0,0.00020821,2]
[386713836,1758466260604,-480.0,0.00020821,2]
[386713838,1758466260613,-480.0,0.00020821,2]
[386713840,1758466260622,-480.0,0.00020821,2]
[386713842,1758466260631,-480.0,0.00020821,2]
[386713844,1758466260641,-480.0,0.00020821,2]
[386713845,1758466260650,-480.0,0.00020821,2]
[386713847,1758466260660,-480.0,0.00020821,2]
[386713849,1758466260670,-216.85,0.00020821,2]
[386713851,1758466260680,-206.22,0.00020821,2]
[386713853,1758466260690,-480.0,0.00020821,2]
[386713855,1758466260699,-480.0,0.00020821,2]
[386713857,1758466260709,-480.0,0.00020821,2]
[386713859,1758466260719,-480.0,0.00020821,2]
[386713862,1758466260729,-480.0,0.00020821,2]
[386713863,1758466260738,-151.0,0.00020821,2]
[386713866,1758466260748,-195.43658433,0.00020821,2]
[386713868,1758466260757,-480.0,0.00020821,2]
[386713870,1758466260766,-223.08,0.00020821,2]
[386713872,1758466260776,-480.0,0.00020821,2]
[386713874,1758466260786,-480.0,0.00020821,2]
[386713876,1758466260795,-480.0,0.00020821,2]
[386713878,1758466260805,-480.0,0.00020821,2]
[386713880,1758466260815,-480.0,0.00020821,2]
[386713882,1758466260824,-480.0,0.00020821,2]
[386713884,1758466260833,-480.0,0.00020821,2]
[386713886,1758466260842,-480.0,0.00020821,2]
[386713887,1758466260851,-686.79,0.00020821,2]
[386713889,1758466260861,-480.0,0.00020821,2]
[386713891,1758466260871,-480.0,0.00020821,2]
[386713893,1758466260880,-10449.81,0.00020821,2]
[386713895,1758466260889,-480.0,0.00020821,2]
[386713897,1758466260899,-253.46772913,0.00020821,2]
[386713899,1758466260908,-480.0,0.00020821,2]
[386713901,1758466260917,-151.0,0.00020821,2]
[386713903,1758466260926,-480.0,0.00020821,2]
[386713905,1758466260936,-480.0,0.00020821,2]
[386713907,1758466260945,-480.0,0.00020821,2]
[386713909,1758466260955,-480.0,0.00020821,2]
[386713911,1758466260965,-494.57325951,0.00020821,2]
[386713913,1758466260974,-480.0,0.00020821,2]
[386713915,1758466260984,-237.12204867,0.00020821,2]
[386713917,1758466260993,-647.89,0.00020821,2]
[386713919,1758466261002,-480.0,0.00020821,2]
[386713921,1758466261012,-480.0,0.00020821,2]
[386713923,1758466261022,-480.0,0.00020821,2]
[386713925,1758466261033,-1483.09,0.00020821,2]
[386713927,1758466261045,-480.0,0.00020821,2]
[386713929,1758466261054,-480.0,0.00020821,2]
[386713931,1758466261064,-480.0,0.00020821,2]
[386713933,1758466261074,-480.0,0.00020821,2]
[386713935,1758466261085,-480.0,0.00020821,2]
[386713937,1758466261094,-480.0,0.00020821,2]
[386713939,1758466261104,-480.0,0.00020821,2]
[386713941,1758466261116,-2444.72,0.00020821,2]
[386713943,1758466261126,-480.0,0.00020821,2]
[386713945,1758466261135,-638.57,0.00020821,2]
[386713947,1758466261145,-480.0,0.00020821,2]
[386713949,1758466261154,-1091.24,0.00020821,2]
[386713951,1758466261163,-480.0,0.00020821,2]
[386713953,1758466261172,-701.35,0.00020821,2]
[386713955,1758466261181,-170.75667848,0.00020821,2]
[386713957,1758466261190,-480.0,0.00020821,2]
[386713959,1758466261200,-480.0,0.00020821,2]
[386713961,1758466261210,-480.0,0.00020821,2]
[386713963,1758466261219,-480.0,0.00020821,2]
[386713965,1758466261228,-1064.36,0.00020821,2]
[386713967,1758466261238,-1229.11,0.00020821,2]
[386713969,1758466261247,-602.2,0.00020821,2]
[386713971,1758466261257,-480.0,0.00020821,2]
[386713973,1758466261267,-480.0,0.00020821,2]
[386713975,1758466261276,-480.0,0.00020821,2]
[386713977,1758466261286,-480.0,0.00020821,2]
[386713979,1758466261295,-480.0,0.00020821,2]
[386713981,1758466261305,-1278.12,0.00020821,2]
[386713983,1758466261316,-1117.47,0.00020821,2]
[386713985,1758466261325,-480.0,0.00020821,2]
[386713987,1758466261334,-480.0,0.00020821,2]
[386713989,1758466261344,-480.0,0.00020821,2]
[386713991,1758466261353,-480.0,0.00020821,2]
[386713993,1758466261362,-480.0,0.00020821,2]
[386713995,1758466261372,-1075.36,0.00020821,2]
[386713997,1758466261381,-480.51,0.00020821,2]
[386713999,1758466261390,-480.0,0.00020821,2]
[386714001,1758466261400,-480.0,0.00020821,2]
[386714003,1758466261409,-483.95768345,0.00020821,2]
[386714005,1758466261419,-480.0,0.00020821,2]
[386714007,1758466261428,-480.0,0.00020821,2]
[386714009,1758466261437,-480.0,0.00020821,2]
[386714010,1758466261446,-565.87,0.00020821,2]
[386714012,1758466261456,-746.0,0.00020821,2]
[386714014,1758466261465,-486.79,0.00020821,2]
[386714016,1758466261474,-820.42,0.00020821,2]
[386714018,1758466261483,-4203.45,0.00020821,2]
[386714020,1758466261493,-480.0,0.00020821,2]
[386714022,1758466261502,-480.0,0.00020821,2]
[386714024,1758466261511,-480.0,0.00020821,2]
[386714026,1758466261521,-480.0,0.00020821,2]
[386714028,1758466261530,-851.58,0.00020821,2]
[386714030,1758466261540,-480.0,0.00020821,2]
[386714032,1758466261549,-480.0,0.00020821,2]
[386714034,1758466261559,-480.0,0.00020821,2]
[386714036,1758466261570,-480.0,0.00020821,2]
[386714038,1758466261579,-480.0,0.00020821,2]
[386714040,1758466261589,-480.0,0.00020821,2]
[386714042,1758466261598,-537.74,0.00020821,2]
[386714044,1758466261607,-2698.71,0.00020821,2]
[386714046,1758466261617,-1022.71,0.00020821,2]
[386714048,1758466261627,-833.12,0.00020821,2]
[386714050,1758466261637,-480.0,0.00020821,2]
[386714052,1758466261645,-480.0,0.00020821,2]
[386714054,1758466261654,-480.0,0.00020821,2]
[386714056,1758466261666,-480.0,0.00020821,2]
[386714058,1758466261676,-764.67,0.00020821,2]
[386714060,1758466261685,-1175.92,0.00020821,2]
[386714062,1758466261695,-480.0,0.00020821,2]
[386714064,1758466261705,-480.0,0.00020821,2]
[386714066,1758466261715,-480.0,0.00020821,2]
[386714068,1758466261724,-480.0,0.00020821,2]
[386714070,1758466261734,-496.89196208,0.00020821,2]
[386714072,1758466261743,-480.0,0.00020821,2]
[386714074,1758466261753,-480.0,0.00020821,2]
[386714076,1758466261762,-1433.61,0.00020821,2]
[386714078,1758466261771,-230.0,0.0002088,2]
[386714080,1758466261781,-1680.0,0.00020886,2]
[386714082,1758466261790,-7341.99,0.00020922,2]
[386714084,1758466261800,-250.0,0.00020932,2]
[386714086,1758466261809,-11327.41235261,0.00020972,2]
[386714088,1758466261819,-2519.0,0.00020986,2]
[386714090,1758466261829,-500.0,0.0002099,2]
[386714092,1758466261838,-1068.84240873,0.00021,2]
[386714094,1758466261848,-360.0,0.00021,2]
[386714096,1758466261857,-230.0,0.00021009,2]
[386714098,1758466261866,-230.0,0.0002104,2]
[386714100,1758466261876,-480.0,0.00021095,2]
[386714102,1758466261886,-480.0,0.00021095,2]
[386714104,1758466261898,-480.0,0.00021095,2]
[386714106,1758466261907,-480.0,0.00021095,2]
[386714108,1758466261917,-480.0,0.00021095,2]
[386714110,1758466261926,-480.0,0.00021095,2]
[386714112,1758466261936,-509.00118506,0.00021095,2]
[386714114,1758466261945,-480.0,0.00021095,2]
[386714116,1758466261956,-480.0,0.00021095,2]
[386714118,1758466261966,-480.0,0.00021095,2]
[386714120,1758466261975,-480.0,0.00021095,2]
[386714122,1758466261985,-480.0,0.00021095,2]
[386714124,1758466261995,-480.0,0.00021095,2]
[386714126,1758466262004,-151.0,0.00021095,2]
[386714128,1758466262013,-480.0,0.00021095,2]
[386714130,1758466262023,-480.0,0.00021095,2]
[386714132,1758466262033,-480.0,0.00021095,2]
[386714134,1758466262045,-480.0,0.00021095,2]
[386714136,1758466262054,-489.53703657,0.00021095,2]
[386714138,1758466262064,-480.0,0.00021095,2]
[386714140,1758466262073,-480.0,0.00021095,2]
[386714142,1758466262085,-486.14070453,0.00021095,2]
[386714144,1758466262095,-686.79,0.00021095,2]
[386714146,1758466262104,-480.0,0.00021095,2]
[386714148,1758466262115,-480.0,0.00021095,2]
[386714150,1758466262124,-10449.81,0.00021095,2]
[386714152,1758466262134,-480.0,0.00021095,2]
[386714154,1758466262143,-316.79536455,0.00021095,2]
[386714156,1758466262153,-480.0,0.00021095,2]
[386714158,1758466262162,-480.0,0.00021095,2]
[386714160,1758466262171,-480.0,0.00021095,2]
[386714162,1758466262181,-480.0,0.00021095,2]
[386714164,1758466262191,-480.0,0.00021095,2]
[386714166,1758466262200,-647.89,0.00021095,2]
[386714168,1758466262210,-480.0,0.00021095,2]
[386714170,1758466262219,-322.24304771,0.00021095,2]
[386714172,1758466262229,-1483.09,0.00021095,2]
[386714173,1758466262239,-480.0,0.00021095,2]
[386714175,1758466262249,-480.0,0.00021095,2]
[386714177,1758466262259,-402.21779819,0.00021095,2]
[386714179,1758466262269,-480.0,0.00021095,2]
[386714192,1758466262382,-480.0,0.00021095,2]
[386714194,1758466262392,-480.0,0.00021095,2]
[386714197,1758466262402,-480.0,0.00021095,2]
[386714199,1758466262412,-2444.72,0.00021095,2]
[386714201,1758466262422,-480.0,0.00021095,2]
[386714203,1758466262432,-638.57,0.00021095,2]
[386714205,1758466262441,-480.0,0.00021095,2]
[386714207,1758466262451,-1091.24,0.00021095,2]
[386714209,1758466262463,-480.0,0.00021095,2]
[386714211,1758466262473,-701.35,0.00021095,2]
[386714212,1758466262483,-480.0,0.00021095,2]
[386714214,1758466262493,-480.0,0.00021095,2]
[386714216,1758466262502,-480.0,0.00021095,2]
[386714218,1758466262512,-480.0,0.00021095,2]
[386714221,1758466262522,-1064.36,0.00021095,2]
[386714222,1758466262531,-1229.11,0.00021095,2]
[386714225,1758466262541,-602.2,0.00021095,2]
[386714227,1758466262552,-480.0,0.00021095,2]
[386714229,1758466262561,-480.0,0.00021095,2]
[386714231,1758466262571,-434.99983717,0.00021095,2]
[386714233,1758466262580,-480.0,0.00021095,2]
[386714235,1758466262590,-1278.12,0.00021095,2]
[386714236,1758466262599,-1117.47,0.00021095,2]
[386714238,1758466262609,-480.0,0.00021095,2]
[386714241,1758466262619,-480.0,0.00021095,2]
[386714243,1758466262628,-480.0,0.00021095,2]
[386714245,1758466262637,-480.0,0.00021095,2]
[386714247,1758466262648,-480.0,0.00021095,2]
[386714248,1758466262658,-1075.36,0.00021095,2]
[386714250,1758466262667,-480.51,0.00021095,2]
[386714253,1758466262678,-480.0,0.00021095,2]
[386714255,1758466262691,-480.0,0.00021095,2]
[386714257,1758466262700,-480.0,0.00021095,2]
[386714259,1758466262711,-480.0,0.00021095,2]
[386714261,1758466262721,-480.0,0.00021095,2]
[386714263,1758466262732,-565.87,0.00021095,2]
[386714265,1758466262741,-746.0,0.00021095,2]
[386714267,1758466262751,-486.79,0.00021095,2]
[386714269,1758466262761,-820.42,0.00021095,2]
[386714271,1758466262770,-4203.45,0.00021095,2]
[386714273,1758466262779,-480.0,0.00021095,2]
[386714275,1758466262788,-480.0,0.00021095,2]
[386714277,1758466262797,-480.0,0.00021095,2]
[386714279,1758466262807,-480.0,0.00021095,2]
[386714281,1758466262816,-851.58,0.00021095,2]
[386714283,1758466262825,-480.0,0.00021095,2]
[386714285,1758466262834,-480.0,0.00021095,2]
[386714287,1758466262844,-259.37439466,0.00021095,2]
[386714289,1758466262853,-480.0,0.00021095,2]
[386714290,1758466262862,-480.0,0.00021095,2]
[386714293,1758466262872,-480.0,0.00021095,2]
[386714294,1758466262881,-537.74,0.00021095,2]
[386714296,1758466262892,-2698.71,0.00021095,2]
[386714298,1758466262901,-1022.71,0.00021095,2]
[386714300,1758466262910,-833.12,0.00021095,2]
[386714302,1758466262920,-480.0,0.00021095,2]
[386714304,1758466262929,-480.0,0.00021095,2]
[386714306,1758466262938,-480.0,0.00021095,2]
[386714309,1758466262948,-480.0,0.00021095,2]
[386714310,1758466262958,-764.67,0.00021095,2]
[386714312,1758466262968,-480.0,0.00021095,2]
[386714314,1758466262977,-1175.92,0.00021095,2]
[386714317,1758466262987,-480.0,0.00021095,2]
[386714319,1758466262996,-480.0,0.00021095,2]
[386714321,1758466263006,-480.0,0.00021095,2]
[386714323,1758466263016,-480.0,0.00021095,2]
[386714324,1758466263025,-1433.61,0.00021095,2]
[386714327,1758466263038,-2000.0,0.00021116,2]
[386714329,1758466263048,-2000.0,0.00021116,2]
[386714330,1758466263058,-2000.0,0.00021116,2]
[386714332,1758466263068,-2000.0,0.00021116,2]
[386714334,1758466263077,-230.0,0.00021146,2]
[386714336,1758466263087,-230.0,0.00021194,2]
[386714338,1758466263096,-500.0,0.0002125,2]
[386714339,1758466263106,-500.0,0.0002125,2]
[386714340,1758466263116,-500.0,0.0002125,2]
[386714341,1758466263126,-500.0,0.0002125,2]
[386714342,1758466263135,-503.14640238,0.00021258,2]
[386714343,1758466263145,-500.0,0.00021264,2]
[386714344,1758466263154,-503.37110723,0.00021265,2]
[386714345,1758466263163,-500.0,0.00021265,2]
[386714346,1758466263173,-500.0,0.00021265,2]
[386714347,1758466263183,-500.0,0.00021265,2]
[386714348,1758466263192,-500.0,0.00021265,2]
[386714349,1758466263202,-500.0,0.00021265,2]
[386714350,1758466263211,-500.0,0.00021265,2]
[386714351,1758466263221,-500.0,0.00021265,2]
[386714352,1758466263230,-500.0,0.00021265,2]
[386714353,1758466263241,-500.0,0.00021265,2]